fUSD/lending_fUSD_20251026
["ID","MTS","AMOUNT","RATE_DAILY","PERIOD"]
[392434188,1761471036423,-151.0,0.00035477,2]
[392434189,1761471036432,-151.0,0.00035477,2]
[392434190,1761471036442,-295.69685731,0.00035477,2]
[392434191,1761471036451,-6539.0,0.00035499,2]
[392434192,1761471036460,-3487.0,0.00035499,2]
[392434193,1761471036469,-6462.845,0.00035499,2]
[392434194,1761471036478,-312.75,0.00035513,30]
[392434195,1761471036488,-19597.97416659,0.00035513,10]
[392434196,1761471036497,-150.37,0.00035532,2]
[392434197,1761471036507,-171.0,0.00035572,2]
[392434198,1761471036516,-172.0,0.00035579,120]
[392434199,1761471036525,-171.0,0.00035595,120]
[392434200,1761471036534,-183.76199719,0.00035616,2]
[392434201,1761471036543,-168.0,0.00035674,2]
[392434202,1761471036553,-152.0,0.00035722,4]
[392434203,1761471036562,-150.37,0.00035896,2]
[392434204,1761471036572,-171.0,0.0003602,2]
[392434205,1761471036581,-230.42,0.00036039,2]
[392434206,1761471036590,-547.92,0.00036039,2]
[392434207,1761471036600,-207.49,0.00036039,2]
[392434208,1761471036609,-168.61,0.00036039,2]
[392434209,1761471036619,-852.15,0.00036039,2]
[392434210,1761471036628,-176.46,0.00036039,2]
[392434211,1761471036637,-547.92,0.00036039,2]
[392434212,1761471036646,-168.61,0.00036039,2]
[392434213,1761471036656,-150.0,0.00036039,2]
[392434214,1761471036665,-547.92,0.00036039,2]
[392434215,1761471036674,-168.61,0.00036039,2]
[392434216,1761471036683,-176.46,0.00036039,2]
[392434217,1761471036696,-150.0,0.00036039,2]
[392434218,1761471036706,-168.61,0.00036039,2]
[392434219,1761471036715,-547.92,0.00036039,2]
[392434220,1761471036723,-168.61,0.00036039,2]
[392434221,1761471036734,-547.92,0.00036039,2]
[392434222,1761471036743,-541.93,0.00036039,2]
[392434223,1761471036752,-222.72,0.00036039,2]
[392434224,1761471036762,-519.51585,0.0003613,2]
[392434225,1761471036771,-602.8778527,0.00036153,2]
[392434226,1761471036780,-602.87785271,0.00036234,2]
[392434227,1761471036789,-150.37,0.0003626,2]
[392434228,1761471036798,-150.44287612,0.000363,30]
[392434229,1761471036807,-230.01543301,0.000363,2]
[392434230,1761471036817,-4678.1994303,0.00036322,2]
[392434231,1761471036826,-171.0,0.00036402,7]
[392434232,1761471036835,-13863.56827459,0.00036456,2]
[392434233,1761471036848,-11176.0,0.00036456,2]
[392434234,1761471037479,-272.36141139,0.00036456,2]
[392434235,1761471037491,-21696.42462058,0.00036456,2]
[392434236,1761471037535,-11974.25668125,0.00036456,2]
[392434237,1761471037547,-478.59852498,0.00036456,2]
[392434238,1761471037559,-500.0,0.00036456,2]
[392434239,1761471037593,-8691.32106715,0.00036456,2]
[392434240,1761471037649,-403.61174459,0.00036456,2]
[392434241,1761471037659,-1017.33737986,0.00036456,2]
[392434242,1761471037704,-433.04519557,0.00036456,2]
[392434243,1761471037714,-1450.38257535,0.00036457,2]
[392434244,1761471037723,-1450.38257535,0.00036459,2]
[392434245,1761471037733,-1450.38257535,0.0003646,2]
[392434246,1761471037742,-1450.38257535,0.00036461,2]
[392434247,1761471037752,-1450.38257535,0.00036463,2]
[392434248,1761471037763,-1450.38257535,0.00036464,2]
[392434250,1761471037772,-1450.38257535,0.00036465,2]
[392434252,1761471037782,-456.31223063,0.00036467,2]
[392434281,1761471039574,-558.0,0.00035499,2]
[392434282,1761471039584,-994.07034472,0.00036467,2]
[392434283,1761471039594,-1108.56841536,0.00036468,8]
[392434284,1761471039606,-151.43809644,0.00036468,2]
[392434285,1761471039766,-893.60531101,0.00036468,2]
[392434286,1761471039778,-650.0,0.00036468,2]
[392434287,1761471039789,-2616.66181398,0.00036468,2]
[392434288,1761471039800,-6619.22094654,0.00036468,2]
[392434289,1761471039811,-2459.66622623,0.00036468,2]
[392434290,1761471039822,-280.99504635,0.00036468,2]
[392434291,1761471039879,-2968.2542235,0.00036468,2]
[392434292,1761471039888,-153.209653,0.00036468,30]
[392434293,1761471039898,-151.0,0.00036468,30]
[392434294,1761471039908,-322.640525,0.00036468,30]
[392434295,1761471039917,-322.640525,0.00036468,30]
[392434296,1761471039927,-322.640525,0.00036468,30]
[392434297,1761471039935,-322.640525,0.00036468,30]
[392434298,1761471039945,-151.0,0.00036468,30]
[392434299,1761471039954,-2151.9410957,0.00036468,2]
[392434300,1761471039963,-1450.38257535,0.00036468,2]
[392434301,1761471039973,-151.0,0.00036468,30]
[392434302,1761471039982,-151.0,0.00036468,30]
[392434303,1761471039992,-151.0,0.00036468,30]
[392434304,1761471040001,-3643.23260001,0.000365,10]
[392434305,1761471040010,-518.70770157,0.000365,2]
[392434307,1761471040019,-215.0,0.000365,17]
[392434309,1761471040029,-267.4,0.000365,60]
[392434311,1761471040038,-5050.0,0.000365,37]
[392434313,1761471040047,-682.89332903,0.000365,10]
[392434315,1761471040055,-403.25436648,0.00036516,2]
[392434317,1761471040064,-538.70101207,0.00036547,15]
[392434318,1761471040073,-306.46414556,0.00036547,15]
[392434320,1761471040082,-263.47756066,0.00036547,15]
[392434322,1761471040091,-859.03,0.00036548,2]
[392434324,1761471040103,-859.03,0.00036548,2]
[392434326,1761471040112,-859.03,0.00036548,2]
[392434328,1761471040120,-620.27916819,0.00036555,120]
[392434330,1761471040131,-166.66,0.00036556,2]
[392434332,1761471040140,-500.0,0.00036556,9]
[392434334,1761471040149,-172.39669895,0.00036556,9]
[392434336,1761471040159,-153.479661,0.00036556,30]
[392434338,1761471040168,-151.0,0.00036556,30]
[392434340,1761471040177,-151.0,0.00036556,30]
[392434342,1761471040186,-152.817889,0.00036556,30]
[392434344,1761471040195,-151.0,0.00036556,30]
[392434346,1761471040203,-151.0,0.00036556,30]
[392434348,1761471040212,-151.0,0.00036556,30]
[392434350,1761471040222,-151.0,0.00036556,30]
[392434351,1761471040231,-307.96,0.00036556,14]
[392434353,1761471040239,-234.450386,0.00036556,30]
[392434355,1761471040249,-151.755044,0.00036556,30]
[392434357,1761471040258,-152.900926,0.00036556,30]
[392434359,1761471040267,-151.0,0.00036556,30]
[392434361,1761471040276,-152.773944,0.00036556,30]
[392434363,1761471040286,-153.592917,0.00036556,30]
[392434365,1761471040295,-153.184077,0.00036556,30]
[392434366,1761471040305,-151.0,0.00036556,30]
[392434367,1761471040314,-151.0,0.00036556,30]
[392434368,1761471040323,-151.0,0.00036556,30]
[392434369,1761471040332,-155.855245,0.00036556,30]
[392434370,1761471040341,-151.649511,0.00036556,30]
[392434371,1761471040354,-151.0,0.00036556,30]
[392434372,1761471040363,-151.0,0.00036556,30]
[392434373,1761471040372,-153.351423,0.00036556,30]
[392434374,1761471040381,-151.0,0.00036556,30]
[392434375,1761471040390,-151.0,0.00036556,30]
[392434376,1761471040399,-151.0,0.00036556,30]
[392434377,1761471040409,-153.303245,0.00036556,30]
[392434378,1761471040418,-322.640525,0.00036556,30]
[392434379,1761471040428,-322.640525,0.00036556,30]
[392434380,1761471040437,-322.640525,0.00036556,30]
[392434381,1761471040446,-322.640525,0.00036556,30]
[392434382,1761471040455,-151.0,0.00036556,30]
[392434383,1761471040464,-151.0,0.00036556,30]
[392434384,1761471040474,-151.0,0.00036556,30]
[392434385,1761471040483,-151.0,0.00036556,30]
[392434386,1761471040492,-368.76858415,0.00036557,2]
[392434387,1761471040501,-153.528635,0.00036557,30]
[392434388,1761471040510,-151.0,0.00036557,30]
[392434389,1761471040519,-500.0,0.00036557,9]
[392434390,1761471040527,-151.0,0.00036557,30]
[392434391,1761471040536,-500.0,0.00036557,9]
[392434392,1761471040545,-500.0,0.00036557,9]
[392434393,1761471040554,-500.0,0.00036557,9]
[392434394,1761471040563,-500.0,0.00036557,9]
[392434395,1761471040571,-500.0,0.00036557,9]
[392434396,1761471040580,-500.0,0.00036557,9]
[392434397,1761471040589,-500.0,0.00036557,9]
[392434398,1761471040599,-500.0,0.00036557,9]
[392434399,1761471040608,-500.0,0.00036557,9]
[392434400,1761471040617,-500.0,0.00036557,9]
[392434401,1761471040626,-500.0,0.00036557,9]
[392434402,1761471040636,-500.0,0.00036557,9]
[392434403,1761471040645,-210.01,0.00036557,9]
[392434404,1761471040654,-500.0,0.00036557,9]
[392434405,1761471040663,-512.47811293,0.00036557,9]
[392434406,1761471040672,-387.22392989,0.00036557,9]
[392434407,1761471040681,-598.98,0.00036557,9]
[392434408,1761471040693,-500.0,0.00036557,2]
[392434409,1761471040702,-500.0,0.00036557,9]
[392434410,1761471040711,-500.0,0.00036557,2]
[392434411,1761471040721,-150.55573093,0.00036557,9]
[392434412,1761471040731,-150.0,0.00036557,9]
[392434413,1761471040740,-500.0,0.00036557,9]
[392434414,1761471040749,-150.0,0.00036557,9]
[392434415,1761471040762,-500.0,0.00036557,2]
[392434416,1761471040778,-500.0,0.00036557,9]
[392434417,1761471040787,-500.0,0.00036557,9]
[392434418,1761471040797,-190.132176,0.00036557,30]
[392434419,1761471040806,-500.0,0.00036557,9]
[392434420,1761471040816,-500.0,0.00036557,9]
[392434421,1761471040825,-150.0,0.00036557,9]
[392434422,1761471040834,-150.0,0.00036557,9]
[392434423,1761471040843,-150.0,0.00036557,9]
[392434424,1761471040854,-150.0,0.00036557,9]
[392434425,1761471040863,-150.0,0.00036557,9]
[392434426,1761471040872,-150.0,0.00036557,9]
[392434427,1761471040881,-245.939742,0.00036557,30]
[392434428,1761471040890,-223.45382435,0.00036557,2]
[392434429,1761471040899,-151.0,0.00036557,30]
[392434430,1761471040908,-859.03,0.00036557,2]
[392434431,1761471040917,-73319.9218957,0.00036557,32]
[392434432,1761471040926,-12461.7582687,0.00036557,4]
[392434433,1761471040934,-18460.98474023,0.00036558,4]
[392434434,1761471040949,-81647.21587575,0.00036558,4]
[392434435,1761471040961,-11032.15305931,0.00036558,4]
[392434436,1761471040972,-467.37482034,0.00036558,4]
[392434437,1761471041279,-1.6e-07,0.00036558,4]
[392434438,1761471041290,-94011.28293821,0.00036558,4]
[392434439,1761471041299,-859.03,0.00036558,2]
[392434440,1761471041308,-153.49,0.00036558,2]
[392434441,1761471041318,-156.35802683,0.00036558,2]
[392434442,1761471041327,-151.0,0.00036558,30]
[392434443,1761471041336,-290.871095,0.00036558,30]
[392434444,1761471041345,-151.0,0.00036558,30]
[392434445,1761471041354,-151.0,0.00036558,30]
[392434446,1761471041363,-151.0,0.00036558,30]
[392434447,1761471041373,-151.0,0.00036558,30]
[392434448,1761471041383,-155.12685,0.00036558,30]
[392434449,1761471041391,-322.640525,0.00036558,30]
[392434450,1761471041400,-322.640525,0.00036558,30]
[392434451,1761471041409,-322.640525,0.00036558,30]
[392434452,1761471041418,-322.640525,0.00036558,30]
[392434453,1761471041427,-151.0,0.00036558,30]
[392434454,1761471041437,-500.0,0.00036567,9]
[392434455,1761471041446,-500.0,0.00036567,9]
[392434456,1761471041455,-525.14534657,0.00036567,9]
[392434457,1761471041464,-500.0,0.00036567,9]
[392434458,1761471041473,-482.42796875,0.00036567,9]
[392434459,1761471041482,-505.40132037,0.00036567,9]
[392434460,1761471041491,-500.0,0.00036567,2]
[392434461,1761471041500,-291.78193347,0.00036567,9]
[392434462,1761471041510,-416.72,0.00036567,9]
[392434463,1761471041519,-216.59,0.00036567,9]
[392434464,1761471041528,-427.52,0.00036567,9]
[392434465,1761471041537,-504.51,0.00036567,9]
[392434466,1761471041546,-178.33,0.00036567,9]
[392434467,1761471041555,-191.31,0.00036567,9]
[392434468,1761471041564,-601.98,0.00036567,9]
[392434469,1761471041572,-350.46,0.00036567,9]
[392434470,1761471041584,-263.17,0.00036567,9]
[392434471,1761471041593,-202.42,0.00036567,9]
[392434472,1761471041603,-254.43,0.00036567,9]
[392434473,1761471041611,-394.52,0.00036567,9]
[392434474,1761471041620,-500.0,0.00036567,9]
[392434475,1761471041629,-500.0,0.00036567,9]
[392434476,1761471041638,-400.0,0.00036567,9]
[392434477,1761471041647,-438.21,0.00036567,9]
[392434478,1761471041656,-507.74208629,0.00036567,9]
[392434479,1761471041665,-500.0,0.00036567,2]
[392434480,1761471041674,-500.0,0.00036567,2]
[392434481,1761471041683,-500.0,0.00036567,9]
[392434482,1761471041696,-500.0,0.00036567,9]
[392434483,1761471041706,-500.0,0.00036567,9]
[392434484,1761471041715,-500.0,0.00036567,9]
[392434485,1761471041724,-500.0,0.00036567,9]
[392434486,1761471041734,-500.0,0.00036567,9]
[392434487,1761471041743,-500.0,0.00036567,9]
[392434488,1761471041756,-554.91,0.00036567,9]
[392434489,1761471041765,-500.0,0.00036567,9]
[392434490,1761471041775,-500.0,0.00036567,9]
[392434491,1761471041783,-728.26,0.00036567,2]
[392434492,1761471041792,-500.0,0.00036567,9]
[392434493,1761471041801,-500.0,0.00036567,9]
[392434494,1761471041810,-514.58654002,0.00036567,9]
[392434495,1761471041819,-500.0,0.00036567,9]
[392434496,1761471041828,-500.0,0.00036567,9]
[392434497,1761471041837,-500.0,0.00036567,9]
[392434498,1761471041846,-508.79513135,0.00036567,9]
[392434499,1761471041856,-546.82545336,0.00036567,9]
[392434500,1761471041865,-500.0,0.00036567,9]
[392434501,1761471041874,-500.0,0.00036567,9]
[392434502,1761471041883,-500.0,0.00036567,9]
[392434503,1761471041891,-500.0,0.00036567,9]
[392434504,1761471041900,-500.0,0.00036567,9]
[392434505,1761471041909,-500.0,0.00036567,9]
[392434506,1761471041918,-187.78889731,0.00036567,9]
[392434507,1761471041927,-500.0,0.00036567,9]
[392434508,1761471041936,-500.0,0.00036567,9]
[392434509,1761471041945,-500.0,0.00036567,9]
[392434510,1761471041954,-589.3252297,0.00036567,9]
[392434511,1761471041964,-486.04759831,0.00036567,9]
[392434512,1761471041973,-503.19496529,0.00036567,9]
[392434513,1761471041982,-500.0,0.00036567,9]
[392434514,1761471041991,-500.0,0.00036567,9]
[392434515,1761471042000,-151.0,0.00036567,30]
[392434516,1761471042009,-151.0,0.00036567,30]
[392434517,1761471042017,-412.75779779,0.00036567,9]
[392434518,1761471042026,-564.12,0.00036567,9]
[392434519,1761471042035,-505.33952746,0.00036567,9]
[392434520,1761471042044,-504.15928085,0.00036567,9]
[392434521,1761471042053,-500.0,0.00036567,9]
[392434522,1761471042062,-516.50607561,0.00036567,9]
[392434523,1761471042071,-322.640525,0.00036567,30]
[392434524,1761471042080,-322.640525,0.00036567,30]
[392434525,1761471042089,-322.640525,0.00036567,30]
[392434526,1761471042098,-322.640525,0.00036567,30]
[392434527,1761471042107,-150.0,0.00036567,2]
[392434528,1761471042116,-150.0,0.00036567,2]
[392434529,1761471042126,-100015.19574718,0.00036568,120]
[392434541,1761471042767,-1622.3104699,0.00036568,120]
[392434542,1761471042930,-429346.85199556,0.00036568,120]
[392434543,1761471042940,-996935.45247865,0.00036568,120]
[392434634,1761471045632,-500.0,0.00036557,2]
[392434635,1761471045642,-1491.64999999,0.00036568,120]
[392434636,1761471045689,-11224.31573,0.00036568,120]
[392434637,1761471045743,-27223.97202344,0.00036568,120]
[392434638,1761471046064,-5622.9990232,0.00036568,120]
[392434639,1761471046076,-615.99,0.00036568,120]
[392434643,1761471102995,177.48,0.00013699,2]
[392434659,1761471320242,-177.48,0.00020187,2]
[392434660,1761471320263,-37.67326498,0.000202,2]
[392434661,1761471324458,-279.24059853,0.000202,2]
[392434662,1761471327217,-159.50336743,0.000202,2]
[392434663,1761471425201,-23.58276906,0.000202,2]
[392434664,1761471425225,-218.20774941,0.00020748,2]
[392434667,1761471521375,-31.79225059,0.00020748,2]
[392434668,1761471522612,-202.57951242,0.00021296,2]
[392434669,1761471525278,-366.14179263,0.00021296,2]
[392434670,1761471525300,-27.83448487,0.00021367,2]
[392434671,1761471528045,-144.25460312,0.00021367,2]
[392434672,1761471528067,-95.77064462,0.00021467,2]
[392434673,1761471533647,-171.29173454,0.00021467,2]
[392434674,1761471534169,-229.2345595,0.0002222,2]
[392434675,1761471536848,-250.22304369,0.0002222,2]
[392434676,1761471538412,-170.75940147,0.0002222,2]
[392434677,1761471543075,-666.91601487,0.0002212,2]
[392434678,1761471600407,241.0,0.0003,120]
[392434789,1761472231807,-194.171135,0.00022009,2]
[392434790,1761472231817,-250.0,0.00022015,2]
[392434791,1761472231827,-131.3484298,0.00022708,2]
[392434792,1761472231838,-1084.09306031,0.00022708,2]
[392434793,1761472231861,-467.34412079,0.00022708,2]
[392434794,1761472231871,-172.08908799,0.00022708,2]
[392434795,1761472231881,-88.22488815,0.00024208,2]
[392434797,1761472237646,-2001.91898863,0.00021915,2]
[392434798,1761472237656,-1111.77511185,0.00024208,2]
[392434799,1761472237666,-786.0,0.00024209,2]
[392434800,1761472237675,-300.0,0.00024209,2]
[392434801,1761472237688,-300.0,0.00024209,2]
[392434802,1761472237698,-300.0,0.00024209,2]
[392434803,1761472237707,-250.0,0.0002421,2]
[392434804,1761472237717,-5148.90456408,0.0002421,2]
[392434805,1761472237726,-280.3354519,0.0002421,2]
[392434806,1761472237735,-653.8972311,0.0002421,2]
[392434807,1761472237745,-500.0,0.000249,2]
[392434808,1761472237754,-500.0,0.00024932,2]
[392434809,1761472237763,-500.0,0.00024932,2]
[392434810,1761472237773,-500.0,0.00024932,2]
[392434811,1761472237782,-164.63627997,0.00025462,2]
[392434812,1761472237793,-151.0,0.00025462,2]
[392434813,1761472237803,-151.0,0.00025462,2]
[392434814,1761472237813,-151.0,0.00025462,2]
[392434815,1761472237823,-210.65546756,0.00025462,2]
[392434816,1761472237834,-718.42645367,0.00025477,2]
[392434817,1761472237846,-823.5504271,0.00025477,2]
[392434818,1761472237858,-4671.11277307,0.00025477,2]
[392434819,1761472237870,-5856.13989253,0.00025477,2]
[392434820,1761472237882,-320.0,0.00026248,2]
[392434821,1761472237891,-420.0,0.00026248,2]
[392434822,1761472237900,-1182.54690588,0.00026367,2]
[392434823,1761472237914,-497.45309412,0.00026367,2]
[392434824,1761472237923,-185.14453015,0.00026448,2]
[392434825,1761472237932,-177.48,0.00026676,2]
[392434826,1761472237943,-79.16042726,0.00028458,2]
[392434848,1761472238364,-199.70345883,0.00028458,2]
[392434850,1761472238381,-308.13611391,0.00028458,2]
[392434853,1761472238395,-932.0,0.00028718,2]
[392434855,1761472238408,-720.0,0.00030855,2]
[392434857,1761472238419,-1000.0,0.00031402,2]
[392434859,1761472238430,-3981.12040268,0.00031673,2]
[392434861,1761472238442,-1000.0,0.00031676,2]
[392434863,1761472238453,-1000.0,0.0003195,2]
[392434865,1761472238464,-500.0,0.00031997,7]
[392434867,1761472238475,-385.43815,0.00032,7]
[392434868,1761472238487,-200.0,0.00032,120]
[392434869,1761472238499,-163.61,0.00032146,120]
[392434870,1761472238512,-1000.0,0.00032224,2]
[392434871,1761472238524,-151.0,0.00032245,7]
[392434872,1761472238535,-500.0,0.00032248,7]
[392434873,1761472238547,-4003.99269041,0.00032248,2]
[392434874,1761472238559,-500.0,0.000323,2]
[392434875,1761472238570,-500.0,0.000323,2]
[392434876,1761472238583,-500.0,0.000323,2]
[392434877,1761472238596,-570.1478695,0.000323,2]
[392434878,1761472238610,-500.0,0.000323,2]
[392434879,1761472238624,-500.0,0.000323,2]
[392434880,1761472238637,-500.0,0.000323,2]
[392434881,1761472238649,-500.0,0.000323,2]
[392434882,1761472238662,-500.0,0.000323,2]
[392434883,1761472238679,-500.0,0.000323,2]
[392434884,1761472238691,-500.0,0.000323,2]
[392434885,1761472238703,-500.0,0.000323,2]
[392434886,1761472238716,-500.0,0.000323,2]
[392434887,1761472238728,-500.0,0.000323,2]
[392434888,1761472238740,-500.0,0.000323,2]
[392434889,1761472238751,-500.0,0.000323,2]
[392434890,1761472238763,-166.198,0.00032495,32]
[392434891,1761472238775,-1000.0,0.00032498,2]
[392434892,1761472238787,-999.0,0.00032506,3]
[392434893,1761472238800,-200.0,0.00032567,5]
[392434894,1761472238817,-269.83735732,0.00032567,5]
[392434895,1761472238830,-160.20351748,0.00032567,5]
[392434896,1761472238843,-500.0,0.00032567,5]
[392434897,1761472238856,-500.0,0.00032567,5]
[392434898,1761472238872,-500.0,0.00032576,7]
[392434899,1761472238887,-500.0,0.00032637,7]
[392434900,1761472238899,-500.0,0.00032654,7]
[392434901,1761472238912,-500.0,0.0003268,7]
[392434902,1761472238925,-992.68451632,0.00032748,7]
[392434903,1761472238937,-1000.0,0.00032772,2]
[392434904,1761472238951,-842.82782465,0.00032876,120]
[392434910,1761472239820,-203.51816501,0.00032876,120]
[392434911,1761472239833,-150.0,0.00032893,4]
[392434912,1761472239848,-150.0,0.00032893,4]
[392434913,1761472239860,-150.0,0.00032893,4]
[392434914,1761472239870,-150.0,0.00032893,4]
[392434915,1761472239884,-150.0,0.00032893,4]
[392434916,1761472239894,-152.44466187,0.00032893,4]
[392434917,1761472239905,-150.0,0.00032893,4]
[392434918,1761472239923,-152.33643343,0.00032893,4]
[392434919,1761472239935,-150.0,0.00032893,4]
[392434920,1761472239947,-154.24920313,0.00032893,4]
[392434921,1761472239959,-155.98502858,0.00032893,4]
[392434922,1761472239971,-150.0,0.00032893,4]
[392434923,1761472239982,-157.42941461,0.00032893,4]
[392434924,1761472239993,-500.0,0.0003297,7]
[392434925,1761472240004,-200.0,0.00033002,2]
[392434926,1761472240016,-166.7,0.00033005,2]
[392434927,1761472240028,-500.0,0.00033029,7]
[392434928,1761472240039,-1000.0,0.00033046,2]
[392434929,1761472240052,-500.0,0.00033083,7]
[392434930,1761472240063,-161.37295535,0.00033115,5]
[392434931,1761472240078,-338.62704465,0.00033115,5]
[392434932,1761472240089,-500.0,0.00033148,7]
[392434933,1761472240100,-232.1652346,0.00033163,7]
[392434934,1761472240114,-271.70890495,0.00033163,7]
[392434935,1761472240126,-177.48,0.00033165,2]
[392434936,1761472240137,-122.04483435,0.00033252,5]
[392434937,1761472240154,-277.95516565,0.00033252,5]
[392434938,1761472240166,-500.0,0.0003326,7]
[392434939,1761472240178,-500.0,0.0003326,2]
[392434940,1761472240191,-662.43963275,0.0003332,2]
[392434941,1761472240202,-500.0,0.00033327,7]
[392434942,1761472240214,-500.0,0.00033379,7]
[392434943,1761472240225,-500.0,0.00033523,7]
[392434944,1761472240237,-500.0,0.00033575,7]
[392434945,1761472240249,-500.0,0.0003371,7]
[392434946,1761472240260,-150.0,0.0003378,2]
[392434947,1761472240271,-500.0,0.00033873,2]
[392434948,1761472240283,-356.98034082,0.00033881,7]
[392434949,1761472240294,-356.48215915,0.00033885,7]
[392434950,1761472240307,-143.51784085,0.00033885,7]
[392434951,1761472240318,-500.0,0.0003389,7]
[392434952,1761472240332,-500.0,0.00033938,7]
[392434953,1761472240343,-200.0,0.00034,120]
[392434954,1761472240354,-500.0,0.00034006,7]
[392434955,1761472240366,-519.98,0.00034094,2]
[392434956,1761472240378,-150.0,0.00034111,7]
[392434957,1761472240389,-500.0,0.00034286,7]
[392434958,1761472240401,-254.9,0.00034301,2]
[392434959,1761472240412,-500.0,0.00034429,7]
[392434960,1761472240423,-945.28398078,0.0003446,7]
[392434961,1761472240434,-500.0,0.00034468,7]
[392434962,1761472240445,-500.0,0.00034489,7]
[392434963,1761472240455,-500.0,0.00034608,7]
[392434964,1761472240467,-816.42792038,0.00034628,7]
[392434965,1761472240477,-300.0,0.00034629,7]
[392434966,1761472240488,-438.0,0.00034701,2]
[392434967,1761472240499,-500.0,0.00034718,7]
[392434968,1761472240510,-150.0,0.00034721,7]
[392434969,1761472240524,-150.0,0.00034721,7]
[392434970,1761472240536,-500.0,0.00034732,7]
[392434971,1761472240547,-162.32861673,0.00034771,9]
[392434972,1761472240558,-500.0,0.00034789,7]
[392434973,1761472240570,-500.0,0.00034805,7]
[392434974,1761472240581,-500.0,0.00034809,7]
[392434975,1761472240592,-500.0,0.00034814,7]
[392434976,1761472240603,-500.0,0.00034869,7]
[392434977,1761472240614,-500.0,0.00034923,7]
[392434978,1761472240625,-1176.0,0.00035,50]
[392434979,1761472240637,-438.0,0.00035003,7]
[392434980,1761472240647,-439.0,0.00035205,7]
[392434981,1761472240658,-500.0,0.00035304,30]
[392434982,1761472240668,-500.0,0.00035308,30]
[392434983,1761472240679,-150.0,0.0003533,7]
[392434984,1761472240689,-151.45,0.0003545,2]
[392434985,1761472240700,-254.9,0.00035587,2]
[392434986,1761472240716,-185.32077279,0.00035616,2]
[392434987,1761472240728,-438.0,0.0003569,2]
[392434988,1761472240911,-475.88,0.00035741,2]
[392434989,1761472240927,-2199.25027847,0.00036,14]
[392434990,1761472240940,-2987.2,0.00036,14]
[392434991,1761472240950,-302.0999999,0.00036,14]
[392434992,1761472240962,-3715.87080808,0.00036,14]
[392434993,1761472240971,-200.0,0.00036,120]
[392434994,1761472240980,-3459.0,0.00036008,7]
[392434995,1761472240989,-563.21822395,0.00036008,2]
[392434996,1761472240998,-438.0,0.00036018,120]
[392434997,1761472241009,-352.177,0.00036147,2]
[392434998,1761472241019,-680.022,0.00036147,2]
[392434999,1761472241028,-663.655,0.00036147,2]
[392435000,1761472241037,-393.68,0.00036147,2]
[392435001,1761472241050,-151.45,0.00036169,2]
[392435002,1761472241059,-500.0,0.000362,13]
[392435003,1761472241069,-9999.99,0.00036261,2]
[392435004,1761472241079,-656.96563089,0.00036261,2]
[392435005,1761472241097,-863.2078657,0.00036261,2]
[392435009,1761472242788,-8191.52650341,0.00036261,2]
[392435010,1761472242798,-150.99,0.00036261,2]
[392435011,1761472242807,-9999.99,0.00036261,2]
[392435012,1761472242816,-6238.33,0.00036261,2]
[392435013,1761472242825,-999.99,0.00036261,2]
[392435014,1761472242834,-3994.79,0.00036261,2]
[392435015,1761472242843,-8432.04669127,0.00036261,2]
[392435016,1761472242892,-761.61330873,0.00036261,2]
[392435017,1761472242901,-1183.93,0.00036261,2]